bitfinex/quotes_BTCUSD_20250205
["timestamp","ask_amount","ask_price","bid_price","bid_amount"]
[1738745882002,0.1275069,97567.0,97566.0,0.11084128]
[1738745882328,0.1275069,97567.0,97566.0,0.00022428]
[1738745882727,0.1275069,97567.0,97566.0,0.11596128]
[1738745883875,0.1275069,97567.0,97566.0,0.11596428]
[1738745885594,0.1275069,97567.0,97566.0,0.00022428]
[1738745885810,0.2504989,97567.0,97566.0,0.00022428]
[1738745886875,0.67631325,97567.0,97566.0,0.00022428]
[1738745887086,0.69533822,97567.0,97566.0,0.00022428]
[1738745888356,0.57234622,97567.0,97557.0,0.22795938]
[1738745888527,0.248803,97558.0,97557.0,0.22795938]
[1738745888674,0.35130665,97558.0,97557.0,0.22795938]
[1738745889546,0.37033162,97558.0,97557.0,0.22795938]
[1738745890626,0.35130665,97558.0,97557.0,0.22795938]
[1738745892540,0.36852414,97558.0,97557.0,0.22795938]
[1738745893542,0.69183484,97558.0,97557.0,0.22795938]
[1738745894355,0.68509295,97558.0,97557.0,0.22795938]
[1738745897672,0.60609295,97558.0,97557.0,0.22795938]
[1738745897844,0.3701107,97558.0,97557.0,0.22795938]
[1738745899684,0.3701107,97558.0,97557.0,0.35096438]
[1738745900756,0.3701107,97558.0,97557.0,1.33825838]
[1738745900964,0.3233107,97558.0,97557.0,2.55283938]
[1738745901226,0.3233107,97558.0,97557.0,2.43199438]
[1738745902204,0.0001068,97565.0,97564.0,0.122996]
[1738745902842,0.0001068,97565.0,97564.0,2.168021]
[1738745903183,0.0001068,97565.0,97564.0,2.065618]
[1738745903336,0.0001068,97565.0,97564.0,2.047186]
[1738745903925,0.0001068,97565.0,97564.0,1.704124]
[1738745904338,0.0001068,97565.0,97564.0,1.661115]
[1738745904959,0.0001068,97565.0,97564.0,1.445044]
[1738745905365,0.0001068,97565.0,97564.0,1.223852]
[1738745905598,0.0001068,97565.0,97564.0,1.192107]
[1738745905968,0.0001068,97565.0,97564.0,0.227358]
[1738745906214,0.0001068,97565.0,97563.0,0.122997]
[1738745906401,0.0001068,97565.0,97564.0,0.501798]
[1738745907037,0.0001068,97565.0,97564.0,0.55516]
[1738745916889,3.339e-05,97565.0,97564.0,0.55516]
[1738745918093,3.339e-05,97565.0,97564.0,1.265841]
[1738745922634,3.339e-05,97565.0,97564.0,1.23512]
[1738745925007,3.339e-05,97565.0,97564.0,1.23534428]
[1738745925989,3.339e-05,97565.0,97564.0,1.19028428]
[1738745927343,3.339e-05,97565.0,97564.0,1.15956228]
[1738745927545,3.339e-05,97565.0,97564.0,1.03656628]
[1738745927762,3.339e-05,97565.0,97564.0,0.96795628]
[1738745927950,3.339e-05,97565.0,97564.0,1.07252028]
[1738745928604,0.0001069,97567.0,97566.0,0.122993]
[1738745928816,0.0001069,97567.0,97566.0,1.11223]
[1738745929154,0.0001069,97567.0,97566.0,1.063076]
[1738745933094,0.0001069,97567.0,97566.0,0.92677]
[1738745933619,0.0488069,97567.0,97566.0,0.794671]
[1738745934579,0.0488069,97567.0,97566.0,0.174109]
[1738745934851,0.0488069,97567.0,97566.0,0.104475]
[1738745938932,0.0488069,97567.0,97566.0,0.227468]
[1738745939161,0.0488069,97567.0,97566.0,0.122993]
[1738745939375,0.0488069,97567.0,97566.0,1.703096]
[1738745939817,0.0001069,97567.0,97566.0,1.703096]
[1738745940676,0.0001069,97567.0,97566.0,1.252523]
[1738745940860,0.0001069,97567.0,97566.0,1.238187]
[1738745942980,0.0001069,97567.0,97566.0,1.093797]
[1738745943201,0.0001069,97567.0,97566.0,1.061028]
[1738745944707,0.0001069,97567.0,97566.0,0.815152]
[1738745944905,0.0001069,97567.0,97566.0,0.790575]
[1738745949310,0.0001069,97567.0,97566.0,0.913568]
[1738745949715,0.0001069,97567.0,97566.0,0.122993]
[1738745950041,0.0001069,97567.0,97566.0,1.747917]
[1738745950699,0.0001069,97567.0,97566.0,1.527751]
[1738745951517,0.0001069,97567.0,97566.0,1.527791]
[1738745951863,0.0001069,97567.0,97566.0,1.334238]
[1738745956005,0.0001069,97567.0,97566.0,1.36504333]
[1738745956540,0.0001069,97567.0,97566.0,1.334238]
[1738745957468,0.0001069,97567.0,97566.0,1.08435]
[1738745959909,0.0001069,97567.0,97566.0,1.071014]
[1738745960469,0.0001069,97567.0,97566.0,0.129953]
[1738745960680,0.0001069,97567.0,97566.0,1.11812]
[1738745971305,0.0001069,97567.0,97566.0,2.041752]
[1738745973322,0.0001069,97567.0,97566.0,2.14425565]
[1738745973895,0.0001069,97567.0,97566.0,2.17505641]
[1738745975095,0.0001069,97567.0,97566.0,2.07062641]
[1738745975323,0.0001069,97567.0,97566.0,2.05219441]
[1738745981453,0.0001069,97567.0,97566.0,0.83049276]
[1738745983092,0.0001069,97567.0,97566.0,0.212744]
[1738745983904,0.0490069,97567.0,97566.0,0.212744]
[1738745985421,0.0490069,97567.0,97566.0,0.335737]
[1738745988060,0.0001069,97567.0,97566.0,0.335737]
[1738745989429,0.17180811,97576.0,97567.0,0.122991]
[1738745989651,0.122982,97575.0,97567.0,1.569991]
[1738745989972,0.17180811,97576.0,97568.0,1.422421]
[1738745990301,0.17180811,97576.0,97569.0,0.122989]
[1738745990302,0.04882711,97576.0,97569.0,0.122989]
[1738745990572,0.17180811,97576.0,97570.0,1.397844]
[1738745990753,0.04882711,97576.0,97567.0,1.446999]
[1738745991115,0.04882711,97576.0,97568.0,0.122989]
[1738745991327,0.122983,97575.0,97569.0,1.422421]
[1738745991531,0.122983,97575.0,97568.0,1.336401]
[1738745991982,0.122983,97574.0,97568.0,1.336401]
[1738745992753,0.122983,97574.0,97568.0,1.116231]
[1738745993299,0.122983,97574.0,97568.0,1.336401]
[1738745993502,0.122983,97574.0,97569.0,1.438805]
[1738745993661,0.122983,97574.0,97568.0,1.438805]
[1738745994204,0.04882711,97576.0,97568.0,1.438805]
[1738745994379,0.04882711,97576.0,97570.0,0.122987]
[1738745994704,0.0001069,97574.0,97571.0,2.393098]
[1738745994931,0.0001069,97574.0,97570.0,0.122988]
[1738745995112,0.0001069,97574.0,97572.0,0.122985]
[1738745995310,0.0001069,97574.0,97573.0,1.633264]
[1738745995456,0.0001069,97574.0,97573.0,0.122984]
[1738745995659,0.0001069,97574.0,97568.0,2.892956]
[1738745995855,0.0001069,97574.0,97573.0,0.129864]
[1738745996060,0.0001069,97574.0,97573.0,0.23236765]
[1738745996294,0.0001069,97574.0,97573.0,1.916602]
[1738745996485,0.0001069,97574.0,97573.0,0.989975]
[1738745996686,0.0001069,97574.0,97573.0,0.851752]
[1738745998130,0.0001069,97574.0,97573.0,0.784178]
[1738745998331,0.0001069,97574.0,97573.0,0.573255]
[1738745998532,0.0001069,97574.0,97573.0,0.358223]
[1738745998754,0.0480069,97574.0,97573.0,0.231263]
[1738745999756,0.0480069,97574.0,97573.0,0.108279]
[1738746000193,0.0480069,97574.0,97573.0,0.101399]
[1738746000607,0.172193,97566.0,97565.0,0.02728089]
[1738746000757,0.0492,97566.0,97565.0,0.00728089]
[1738746001172,0.172193,97566.0,97565.0,0.00728089]
[1738746005229,0.250693,97566.0,97565.0,0.00728089]
[1738746006381,0.5740037,97566.0,97565.0,0.00728089]
[1738746007102,0.5740037,97566.0,97565.0,0.00040089]
[1738746007326,0.67650735,97566.0,97565.0,0.00040089]
[1738746014158,0.69950735,97566.0,97565.0,0.00040089]
[1738746014353,0.76099735,97566.0,97565.0,0.00040089]
[1738746014623,0.863501,97566.0,97565.0,0.00040089]
[1738746014984,0.863501,97566.0,97557.0,0.22795938]
[1738746014985,0.477993,97558.0,97557.0,0.17795938]
[1738746015194,0.60349665,97558.0,97557.0,0.17795938]
[1738746015391,0.60349665,97558.0,97557.0,0.15745838]
[1738746015392,0.92680735,97558.0,97557.0,0.15745838]
[1738746015613,0.01,97536.0,97510.0,0.001882]
[1738746015977,0.31029365,97518.0,97510.0,0.001882]
[1738746016176,0.53103511,97518.0,97510.0,0.001882]
[1738746016381,0.400968,97507.0,97506.0,5e-07]
[1738746016578,0.88827235,97507.0,97506.0,5e-07]
[1738746016692,0.87827235,97507.0,97506.0,5e-07]
[1738746016964,0.76037235,97507.0,97506.0,5e-07]
[1738746017615,0.78337235,97507.0,97506.0,5e-07]
[1738746018225,0.72188235,97507.0,97506.0,5e-07]
[1738746018835,0.4463787,97507.0,97506.0,5e-07]
[1738746022578,0.54888235,97507.0,97506.0,5e-07]
[1738746022800,0.63759071,97507.0,97506.0,5e-07]
[1738746023225,0.54888235,97507.0,97506.0,5e-07]
[1738746023435,0.4463787,97507.0,97506.0,5e-07]
[1738746025101,0.3233107,97507.0,97506.0,5e-07]
[1738746025293,0.01,97529.0,97506.0,5e-07]
[1738746025294,0.3233107,97519.0,97506.0,5e-07]
[1738746025730,0.123058,97515.0,97507.0,0.123068]
[1738746025930,0.3233107,97519.0,97508.0,1.105648]
[1738746026135,0.3233107,97519.0,97507.0,1.088229]
[1738746026493,0.3233107,97519.0,97507.0,0.623027]
[1738746026705,0.123059,97514.0,97507.0,1.117026]
[1738746026930,0.123062,97512.0,97508.0,1.013427]
[1738746027075,0.123062,97512.0,97509.0,0.857676]
[1738746027286,0.123062,97512.0,97507.0,0.937602]
[1738746027487,0.164078,97515.0,97507.0,1.004206]
[1738746027679,0.123059,97514.0,97507.0,1.004206]
[1738746028011,0.12306,97513.0,97507.0,1.004206]
[1738746028156,0.123059,97514.0,97507.0,1.127273]
[1738746028345,0.12306,97513.0,97508.0,0.974489]
[1738746028554,0.12306,97513.0,97507.0,1.021625]
[1738746028746,0.12306,97513.0,97507.0,1.004206]
[1738746029012,0.123061,97513.0,97507.0,1.004206]
[1738746029213,0.123059,97515.0,97507.0,1.004206]
[1738746029419,0.164076,97516.0,97508.0,0.946823]
[1738746029620,0.12306,97513.0,97507.0,1.21232]
[1738746029817,0.12306,97513.0,97508.0,1.013427]
[1738746030075,0.123062,97512.0,97508.0,0.890466]
[1738746030246,0.123061,97513.0,97507.0,0.948874]
[1738746030474,0.123061,97513.0,97508.0,0.791073]
[1738746030785,0.123066,97509.0,97506.0,0.0001074]
[1738746030996,0.123068,97507.0,97506.0,0.0001074]
[1738746033147,0.123073,97503.0,97502.0,0.00629189]
[1738746035322,0.164073,97517.0,97502.0,0.00629189]
[1738746035482,0.164092,97506.0,97502.0,0.00129189]
[1738746035841,0.123073,97503.0,97502.0,0.00129189]
[1738746036392,0.26657865,97516.0,97502.0,0.00129189]
[1738746036618,0.05898894,97515.0,97502.0,0.00129189]
[1738746036826,0.3233107,97519.0,97502.0,0.00129189]
[1738746037019,0.3233107,97519.0,97503.0,2.357955]
[1738746037482,0.3233107,97519.0,97503.0,1.731835]
[1738746037656,0.3233107,97519.0,97503.0,1.952154]
[1738746037842,0.123064,97510.0,97503.0,1.952154]
[1738746038242,0.164078,97515.0,97503.0,1.138512]
[1738746038520,0.164079,97514.0,97503.0,1.138512]
[1738746038801,0.164083,97512.0,97503.0,1.138512]
[1738746039170,0.123059,97514.0,97503.0,1.138512]
[1738746039373,0.3233107,97519.0,97503.0,1.138512]
[1738746039570,0.123063,97511.0,97503.0,1.138512]
[1738746040171,0.3233107,97519.0,97503.0,1.138512]
[1738746040363,0.123064,97510.0,97503.0,1.138512]
[1738746040790,0.123062,97512.0,97503.0,1.138512]
[1738746041076,0.123063,97511.0,97503.0,1.138512]
[1738746041459,0.123064,97510.0,97503.0,1.138512]
[1738746041891,0.123064,97510.0,97503.0,1.1386189]
[1738746042096,0.123064,97510.0,97504.0,1.017588]
[1738746042824,0.164073,97517.0,97504.0,1.017588]
[1738746042998,0.3235352,97519.0,97504.0,1.017588]
[1738746043176,0.3235352,97519.0,97505.0,0.0459]
[1738746043511,0.123056,97516.0,97507.0,0.123068]
[1738746043714,0.123056,97516.0,97508.0,2.119015]
[1738746043943,0.12300479,97516.0,97509.0,1.839282]
[1738746044167,0.123054,97518.0,97508.0,0.123066]
[1738746044357,0.123054,97518.0,97509.0,2.43973]
[1738746044553,0.123054,97518.0,97509.0,2.219429]
[1738746044991,0.3235352,97519.0,97509.0,2.219429]
[1738746045194,0.123055,97517.0,97507.0,0.123068]
[1738746045367,0.123055,97517.0,97508.0,1.923305]
[1738746045785,0.123057,97516.0,97508.0,1.923305]
[1738746046345,0.3235352,97519.0,97508.0,1.524714]
[1738746046540,0.123058,97515.0,97506.0,1.714287]
[1738746046747,0.164073,97517.0,97506.0,1.714287]
[1738746046948,0.164073,97517.0,97507.0,1.565708]
[1738746047251,0.123058,97515.0,97506.0,1.647685]
[1738746047472,0.164072,97518.0,97506.0,1.647685]
[1738746047675,0.123058,97515.0,97506.0,1.647685]
[1738746049116,0.164072,97518.0,97506.0,1.647685]
[1738746049329,0.123057,97516.0,97506.0,1.770753]
[1738746049555,0.123057,97516.0,97507.0,1.633339]
[1738746049710,0.123059,97514.0,97507.0,1.633339]
[1738746050055,0.123058,97515.0,97506.0,1.647685]
[1738746050628,0.164073,97517.0,97506.0,1.647685]
[1738746050829,0.164073,97517.0,97507.0,0.123067]
[1738746050998,0.123057,97516.0,97508.0,1.714287]
[1738746051193,0.123056,97516.0,97508.0,1.714287]
[1738746051557,0.123056,97516.0,97506.0,1.833261]
[1738746051786,0.123058,97515.0,97507.0,1.628215]
[1738746054304,0.123059,97514.0,97507.0,1.628215]
[1738746054518,0.164078,97515.0,97508.0,1.402781]
[1738746054711,0.164078,97515.0,97506.0,1.638463]
[1738746054913,0.164078,97515.0,97507.0,0.0001069]
[1738746055115,0.123059,97514.0,97507.0,1.4182639]
[1738746055322,0.0002245,97517.0,97508.0,1.297241]
[1738746055568,0.123066,97508.0,97507.0,0.0001069]
[1738746057255,0.14195661,97508.0,97507.0,0.0001069]
[1738746057720,0.123066,97508.0,97507.0,0.0001069]
[1738746057923,0.123071,97504.0,97503.0,3.401e-05]
[1738746058255,0.164073,97518.0,97503.0,3.401e-05]
[1738746058607,0.10272815,97517.0,97503.0,3.401e-05]
[1738746058756,0.164084,97511.0,97503.0,3.401e-05]
[1738746058960,0.164077,97515.0,97503.0,3.401e-05]
[1738746059164,0.123061,97512.0,97505.0,0.0759]
[1738746059380,0.01905805,97516.0,97506.0,1.627224]
[1738746059581,0.0002245,97517.0,97506.0,1.627224]
[1738746059986,0.1232805,97517.0,97506.0,1.627224]
[1738746060303,0.1232805,97517.0,97506.0,1.750292]
[1738746060552,0.1232805,97517.0,97508.0,0.0811]
[1738746060553,0.0002245,97517.0,97508.0,0.0811]
[1738746060768,0.0002245,97517.0,97516.0,0.123056]
[1738746060991,0.0002245,97517.0,97516.0,0.22555965]
[1738746061209,0.0002245,97517.0,97516.0,2.52045865]
[1738746061421,0.0002245,97517.0,97516.0,2.87289165]
[1738746061627,0.0002245,97517.0,97516.0,3.06346565]
[1738746061959,0.0002245,97517.0,97516.0,2.60549465]
[1738746062161,0.0002245,97517.0,97516.0,2.40265365]
[1738746062391,0.0002245,97517.0,97516.0,2.48115365]
[1738746062699,0.0002245,97517.0,97516.0,2.73078734]
[1738746064254,0.07277476,97538.0,97537.0,0.12303]
[1738746064506,0.07277476,97538.0,97537.0,1.698266]
[1738746064693,0.07277476,97538.0,97537.0,1.807869]
[1738746064908,0.16401,97555.0,97541.0,0.123024]
[1738746065134,0.123013,97551.0,97542.0,1.455484]
[1738746065353,0.123013,97551.0,97543.0,1.038609]
[1738746065599,0.123014,97550.0,97542.0,1.040657]
[1738746065806,0.123014,97550.0,97542.0,0.950523]
[1738746065996,0.123014,97550.0,97542.0,1.405295]
[1738746066496,0.3233107,97555.0,97542.0,1.405295]
[1738746066497,0.123011,97552.0,97542.0,1.405295]
[1738746066721,0.123013,97551.0,97541.0,1.408368]
[1738746066972,0.123014,97550.0,97543.0,0.123021]
[1738746067158,0.123014,97550.0,97544.0,1.20146]
[1738746067392,0.123014,97550.0,97545.0,1.125666]
[1738746068396,0.123011,97552.0,97545.0,1.248685]
[1738746068693,0.164013,97553.0,97546.0,1.393002]
[1738746068863,0.123013,97551.0,97546.0,1.393002]
[1738746069073,0.123014,97550.0,97541.0,1.553809]
[1738746069277,0.123014,97550.0,97541.0,1.271109]
[1738746069453,0.123014,97550.0,97541.0,1.170734]
[1738746070552,0.164011,97554.0,97543.0,0.123022]
[1738746070752,0.123011,97552.0,97544.0,1.929704]
[1738746070980,0.4873207,97555.0,97545.0,1.755584]
[1738746070981,0.3233107,97555.0,97545.0,1.755584]
[1738746071181,0.3233107,97555.0,97540.0,0.22192864]
[1738746071182,0.123012,97551.0,97541.0,1.962499]
[1738746071364,0.123012,97551.0,97541.0,1.729977]
[1738746071580,0.1642295,97558.0,97541.0,1.813964]
[1738746071800,0.0002245,97558.0,97551.0,0.123012]
[1738746072000,0.0002245,97558.0,97548.0,0.09890264]
[1738746072001,0.0002245,97558.0,97557.0,0.123005]
[1738746072207,0.0002245,97558.0,97555.0,0.164009]
[1738746072544,0.0002245,97558.0,97556.0,3.328652]
[1738746072725,0.0002245,97558.0,97557.0,2.883036]
[1738746072881,0.0002245,97558.0,97557.0,2.851286]
[1738746073659,0.0002245,97558.0,97557.0,0.123005]
[1738746073870,0.0002245,97558.0,97557.0,3.83547865]
[1738746074417,0.0002245,97558.0,97557.0,4.02331665]
[1738746074851,0.0002245,97558.0,97557.0,4.22111665]
[1738746075051,0.0002245,97558.0,97557.0,4.23111665]
[1738746076041,0.0002245,97558.0,97557.0,4.22111665]
[1738746076420,0.0002245,97558.0,97557.0,3.79164065]
[1738746078029,0.0002245,97558.0,97557.0,3.75268765]
[1738746079490,0.1640708,97582.0,97575.0,0.122981]
[1738746079703,0.0001068,97582.0,97576.0,1.098565]
[1738746079872,0.0001068,97582.0,97577.0,2.607057]
[1738746080077,0.0001068,97582.0,97578.0,2.459503]
[1738746080277,0.0001068,97582.0,97579.0,2.278262]
[1738746080840,0.0001068,97582.0,97577.0,2.345911]
[1738746080978,0.0001068,97582.0,97578.0,1.768318]
[1738746081179,0.0001068,97582.0,97580.0,0.122975]
[1738746081358,0.0001068,97582.0,97581.0,0.918462]
[1738746081728,0.0001068,97582.0,97577.0,1.31472]
[1738746082380,0.0001068,97582.0,97578.0,1.239974]
[1738746082704,0.0001068,97582.0,97581.0,0.122974]
[1738746083336,0.0001068,97582.0,97581.0,1.93950965]
[1738746083549,0.0001068,97582.0,97581.0,3.35867665]
[1738746083750,0.0001068,97582.0,97581.0,4.30148565]
[1738746084768,0.0001068,97582.0,97581.0,0.50367765]
[1738746085137,0.0001068,97582.0,97581.0,4.30148565]
[1738746086342,0.0001068,97582.0,97581.0,4.31192149]
[1738746086546,0.0001068,97582.0,97581.0,4.39292149]
[1738746087972,0.0001068,97582.0,97581.0,4.40292149]
[1738746088419,0.0001068,97582.0,97581.0,4.42850383]
[1738746089835,0.3045244,97614.0,97585.0,0.01]
[1738746090030,0.0002245,97615.0,97613.0,0.122934]
[1738746090232,0.0002245,97615.0,97614.0,1.692842]
[1738746093489,0.0002245,97615.0,97614.0,1.685842]
[1738746093712,0.0002245,97615.0,97614.0,1.692802]
[1738746095805,0.0002245,97615.0,97614.0,2.758194]
[1738746097761,0.0002245,97615.0,97614.0,2.86069765]
[1738746099823,0.0002245,97615.0,97614.0,2.82787965]
[1738746100208,0.0002245,97615.0,97614.0,2.73682865]
[1738746100817,0.0002245,97615.0,97614.0,0.924095]
[1738746101874,0.0002245,97615.0,97614.0,1.02659865]
[1738746103246,0.0002245,97615.0,97614.0,1.25589865]
[1738746104091,0.0002245,97615.0,97614.0,1.25612293]
[1738746105875,0.0002245,97615.0,97614.0,1.26648808]
[1738746106289,0.0002245,97615.0,97614.0,4.14720108]
[1738746113479,0.0002245,97615.0,97614.0,4.27013408]
[1738746119214,0.0002245,97615.0,97614.0,4.27009408]
[1738746119467,0.0002245,97615.0,97614.0,3.47077508]
[1738746119679,0.0002245,97615.0,97614.0,1.87197708]
[1738746121629,0.0002245,97615.0,97614.0,1.90268951]
[1738746121831,0.0002245,97615.0,97614.0,1.87197708]
[1738746122036,0.0002245,97615.0,97614.0,1.90269297]
[1738746122237,0.0002245,97615.0,97614.0,1.98269297]
[1738746122797,0.0002245,97615.0,97614.0,2.03039297]
[1738746123930,0.0102245,97615.0,97614.0,2.03039297]
[1738746124302,0.00371989,97615.0,97614.0,2.03039297]
[1738746124863,0.00108889,97615.0,97614.0,2.03039297]
[1738746125066,0.00108889,97615.0,97614.0,0.55140197]
[1738746125293,0.00108889,97615.0,97614.0,0.56140197]
[1738746125499,0.00108889,97615.0,97614.0,4.35920997]
[1738746129315,0.00119579,97615.0,97614.0,4.35920997]
[1738746129726,5e-07,97617.0,97616.0,0.28293]
[1738746129959,0.0001069,97656.0,97651.0,0.122886]
[1738746130147,0.0001069,97656.0,97655.0,0.122881]
[1738746130346,0.0001069,97656.0,97655.0,0.129921]
[1738746130594,0.0001069,97656.0,97655.0,3.927729]
[1738746131794,0.0483,97667.0,97662.0,0.122872]
[1738746131995,0.0483,97667.0,97662.0,2.146411]
[1738746132211,0.0483,97667.0,97662.0,2.654839]
[1738746132624,0.3045244,97674.0,97662.0,2.654839]
[1738746133023,0.06149,97673.0,97662.0,2.654839]
[1738746133226,0.3045244,97674.0,97662.0,2.654839]
[1738746133637,0.3045244,97674.0,97662.0,2.280406]
[1738746135779,0.3045244,97674.0,97662.0,3.268653]
[1738746135959,0.3045244,97674.0,97662.0,3.250239]
[1738746136139,0.3045244,97674.0,97662.0,2.803164]
[1738746138625,0.3045244,97674.0,97662.0,2.684508]
[1738746138827,0.3045244,97674.0,97662.0,1.271726]
[1738746140037,0.3045244,97674.0,97662.0,0.382626]
[1738746140228,0.0498,97662.0,97653.0,1.232923]
[1738746140581,0.0498,97662.0,97655.0,0.12288]
[1738746140797,0.0498,97662.0,97656.0,0.445072]
[1738746141012,0.0498,97662.0,97656.0,0.44529628]
[1738746141223,0.0498,97662.0,97657.0,1.040514]
[1738746141349,0.0498,97662.0,97658.0,0.745862]
[1738746141560,0.0498,97662.0,97658.0,0.548404]
[1738746141758,0.0498,97662.0,97658.0,0.684475]
[1738746142061,0.0498,97662.0,97658.0,0.487017]
[1738746142255,0.0498,97662.0,97658.0,0.822594]
[1738746142461,0.0498,97662.0,97659.0,0.518734]
[1738746142700,0.0498,97662.0,97657.0,0.485994]
[1738746143077,0.0498,97662.0,97658.0,0.00708]
[1738746143280,0.0498,97662.0,97659.0,0.46144]
[1738746144306,0.0498,97662.0,97660.0,0.122874]
[1738746144491,0.0498,97662.0,97661.0,1.46919]
[1738746144638,0.0498,97662.0,97661.0,1.226716]
[1738746145234,0.0498,97662.0,97661.0,0.871701]
[1738746146123,0.3543244,97662.0,97661.0,0.871701]
[1738746146327,0.122876,97659.0,97658.0,0.00708]
[1738746146890,0.122874,97661.0,97658.0,0.374395]
[1738746147089,0.122874,97661.0,97659.0,0.721307]
[1738746147891,0.122874,97661.0,97660.0,0.482924]
[1738746148092,0.122874,97661.0,97659.0,0.600582]
[1738746150160,0.3543244,97662.0,97659.0,0.600582]
[1738746152006,0.3543244,97662.0,97659.0,0.723458]
[1738746152207,0.3543244,97662.0,97660.0,0.902394]
[1738746152383,0.3543244,97662.0,97658.0,0.00708]
[1738746152384,0.3543244,97662.0,97659.0,1.077346]
[1738746152739,0.3045244,97662.0,97661.0,0.122874]
[1738746152920,0.3045244,97662.0,97661.0,1.514309]
[1738746154121,0.3045244,97662.0,97661.0,1.61681265]
[1738746157030,0.3045244,97662.0,97661.0,2.88217665]
[1738746157917,0.0001069,97663.0,97661.0,2.88217665]
[1738746158283,0.0001069,97663.0,97662.0,2.099211]
[1738746163819,0.0001069,97663.0,97662.0,2.36191465]
[1738746164041,0.0001069,97663.0,97662.0,2.59085975]
[1738746164680,0.0001069,97680.0,97679.0,0.122851]
[1738746164895,0.0001069,97680.0,97679.0,3.259892]
[1738746165325,0.0001069,97680.0,97679.0,3.184192]
[1738746167101,1.572e-05,97680.0,97679.0,3.058317]
[1738746167304,1.572e-05,97680.0,97679.0,2.56226]
[1738746167952,1.572e-05,97680.0,97679.0,2.66476365]
[1738746169194,0.3045244,97688.0,97687.0,0.122841]
[1738746169401,0.3045244,97688.0,97687.0,1.769502]
[1738746169605,0.3045244,97688.0,97687.0,2.33636065]
[1738746169808,0.0004,97689.0,97687.0,2.16757265]
[1738746170017,0.0004,97689.0,97688.0,1.992334]
[1738746170219,0.0004,97689.0,97688.0,2.09483765]
[1738746170640,0.0004,97689.0,97688.0,2.10439246]
[1738746171055,0.0004,97689.0,97688.0,0.11205846]
[1738746171256,0.0004,97689.0,97688.0,3.19456046]
[1738746171431,0.0004,97689.0,97688.0,3.17819746]
[1738746171956,0.0004,97689.0,97688.0,2.44794146]
[1738746172119,0.0004,97689.0,97688.0,1.28589881]
[1738746172316,0.0004,97689.0,97688.0,0.36549881]
[1738746172521,0.123238,97689.0,97688.0,0.36549881]
[1738746172720,0.0004,97689.0,97688.0,0.32151481]
[1738746173508,0.0004,97689.0,97688.0,0.31196]
[1738746174599,0.0004,97689.0,97688.0,0.41446365]
[1738746176203,0.0005068,97689.0,97688.0,0.41446365]
[1738746177607,0.0005068,97689.0,97688.0,0.46406365]
[1738746178674,0.0005068,97689.0,97688.0,0.41446365]
[1738746181781,0.0005068,97689.0,97688.0,0.31196]
[1738746181995,0.0005068,97689.0,97688.0,0.0076]
[1738746182204,0.0005068,97689.0,97688.0,0.13044]
[1738746182550,0.0005068,97689.0,97688.0,1.906924]
[1738746182754,0.0005068,97689.0,97688.0,1.923288]
[1738746183341,0.0005068,97689.0,97688.0,1.915688]
[1738746183614,0.0005068,97689.0,97688.0,1.923288]
[1738746184295,0.0005068,97689.0,97688.0,1.646115]
[1738746185995,0.0005068,97689.0,97688.0,1.625586]
[1738746186376,0.0005068,97689.0,97688.0,1.326935]
[1738746186759,0.0005068,97689.0,97688.0,0.109911]
[1738746187041,0.0005068,97689.0,97688.0,2.30816593]
[1738746187169,0.0005068,97689.0,97688.0,2.74670265]
[1738746187375,0.0005068,97689.0,97688.0,2.17703465]
[1738746188827,0.0005068,97689.0,97688.0,1.89989565]
[1738746192464,0.0005068,97689.0,97688.0,1.98159565]
[1738746194941,0.049,97711.0,97688.0,1.87928465]
[1738746195131,0.171811,97711.0,97690.0,0.09890264]
[1738746195334,0.171811,97711.0,97700.0,0.122824]
[1738746195579,0.171811,97711.0,97701.0,1.621907]
[1738746195780,0.049,97711.0,97702.0,1.52373]
[1738746196031,0.3045244,97712.0,97703.0,1.44430882]
[1738746196152,0.3045244,97728.0,97711.0,0.122811]
[1738746196353,0.3045244,97728.0,97712.0,3.55758058]
[1738746196595,0.3045244,97728.0,97712.0,3.55635265]
[1738746197379,0.3045244,97728.0,97712.0,3.56592555]
[1738746197627,0.3045244,97728.0,97724.0,0.122793]
[1738746197771,0.3045244,97728.0,97725.0,1.562172]
[1738746197968,0.3045244,97728.0,97725.0,1.216598]
[1738746198175,0.3045244,97728.0,97726.0,1.216594]
[1738746198378,0.3045244,97728.0,97725.0,1.494692]
[1738746198920,0.3045244,97728.0,97726.0,0.1323649]
[1738746199095,0.3045244,97728.0,97727.0,1.431293]
[1738746199420,0.3045244,97728.0,97727.0,1.345415]
[1738746199641,0.3045244,97728.0,97727.0,1.275893]
[1738746200244,0.0815,97741.0,97727.0,1.37839665]
[1738746200418,0.5560924,97746.0,97728.0,1.78539365]
[1738746200629,0.4333244,97746.0,97728.0,2.02462365]
[1738746200835,0.122769,97745.0,97728.0,2.02462365]
[1738746201451,0.4333244,97746.0,97728.0,2.02462365]
[1738746202275,0.5560914,97746.0,97728.0,2.02462365]
[1738746202583,0.12277,97744.0,97728.0,1.47664465]
[1738746202801,0.5560914,97746.0,97728.0,1.47664465]
[1738746203461,0.4333244,97746.0,97728.0,1.47664465]
[1738746204455,0.12277,97744.0,97728.0,1.47664465]
[1738746205182,0.4333244,97746.0,97728.0,1.47664465]
[1738746205380,0.122771,97743.0,97728.0,1.47664465]
[1738746206271,0.122773,97742.0,97728.0,1.47664465]
[1738746206457,0.163691,97745.0,97728.0,1.31912865]
[1738746206662,0.12277,97743.0,97728.0,1.31912865]
[1738746207005,0.122769,97745.0,97728.0,1.31912865]
[1738746207640,0.12277,97744.0,97728.0,1.31912865]
[1738746208089,0.5560914,97746.0,97728.0,1.31912865]
[1738746208777,0.4333244,97746.0,97728.0,1.31912865]
[1738746208938,0.4333244,97746.0,97728.0,0.22529265]
[1738746209142,0.122771,97743.0,97728.0,1.66668365]
[1738746209343,0.5560924,97746.0,97728.0,1.66668365]
[1738746209757,0.122769,97745.0,97728.0,1.66668365]
[1738746210751,0.12277,97744.0,97728.0,1.66668365]
[1738746211165,0.122769,97745.0,97728.0,1.66668365]
[1738746211977,0.0005067,97729.0,97728.0,1.66668365]
[1738746213173,0.0005067,97729.0,97728.0,1.89668365]
[1738746214124,0.0148695,97753.0,97749.0,0.122762]
[1738746214356,0.0148695,97753.0,97751.0,0.12276]